{"text_format":"3","workbook":"xlsx","n_sheets":2,"sheets":["Početak","Proračun za vjenčanje"],"read":"whole","date_system":"1900"}

{"sheet":"Početak","index":0,"n_rows":7,"n_cols":2,"rows_kept":7}
[null,"O OVOM PREDLOŠKU"]
[null,"Uz pomoć ovog predloška evidentirajte stvarne troškove vjenčanja za različite stavke i pratite ih u odnosu na proračunske iznose."]
[null,"Unesite troškove za odjeću, ukrase, darove, cvijeće, glazbu, fotografije, prijem, tiskanice, prijevoz i razne stavke u odgovarajućim tablicama."]
[null,"Ukupni procijenjeni i ukupni stvarni troškovi izračunavaju se automatski."]
[null,"Napomena: "]
[null,"Dodatne su upute navedene u stupcu A u radnom listu PRORAČUN ZA VJENČANJE. Ovaj je tekst namjerno skriven. Da biste uklonili tekst, odaberite stupac A, a zatim odaberite IZBRIŠI. Da biste otkrili tekst, odaberite stupac A, a zatim promijenite boju fonta."]
[null,"Da biste saznali više o tablicama, pritisnite SHIFT, a zatim F10 unutar tablice pa odaberite mogućnost TABLICA, a potom ZAMJENSKI TEKST."]

{"sheet":"Proračun za vjenčanje","index":1,"n_rows":93,"n_cols":4,"rows_kept":93,"merged":[[0,1,0,3],[2,1,2,3],[6,1,6,3],[15,1,15,3],[25,1,25,3],[34,1,34,3],[43,1,43,3],[50,1,50,3],[59,1,59,3],[68,1,68,3],[77,1,77,3],[85,1,85,3]]}
[null,"PRORAČUN ZA VJENČANJE"]
[]
[null,"UKUPNI TROŠKOVI "]
[null,"Stavka ","Procijenjeno","Stvarno"]
[null,"Ukupni izdaci ",{"$f":"SUM(Odjeća[[#Totals],[Procijenjeno]],Ukrasi[[#Totals],[Procijenjeno]],Darovi[[#Totals],[Procijenjeno]],Cvijeće[[#Totals],[Procijenjeno]],Glazba[[#Totals],[Procijenjeno]],Fotografija[[#Totals],[Procijenjeno]],Prijem[[#Totals],[Procijenjeno]],PapirnatiproizvodiITisak[[#Totals],[Procijenjeno]],Prijevoz[[#Totals],[Procijenjeno]],OstaliTroškovi[[#Totals],[Procijenjeno]])","v":0},{"$f":"SUM(Odjeća[[#Totals],[Stvarno]],Ukrasi[[#Totals],[Stvarno]],Darovi[[#Totals],[Stvarno]],Cvijeće[[#Totals],[Stvarno]],Glazba[[#Totals],[Stvarno]],Fotografija[[#Totals],[Stvarno]],Prijem[[#Totals],[Stvarno]],PapirnatiproizvodiITisak[[#Totals],[Stvarno]],Prijevoz[[#Totals],[Stvarno]],OstaliTroškovi[[#Totals],[Stvarno]],)","v":0}]
[]
[null,"ODJEĆA"]
[null,"Stavka ","Procijenjeno","Stvarno"]
[null,"Zaručnički prsten"]
[null,"Vjenčani prsteni"]
[null,"Vjenčanica"]
[null,"Veo / pokrivalo za glavu"]
[null,"Ostalo:"]
[null,"Ukupno za odjeću",{"$f":"SUBTOTAL(109,Odjeća[Procijenjeno])","v":0},{"$f":"SUBTOTAL(109,Odjeća[Stvarno])","v":0}]
[]
[null,"UKRASI"]
[null,"Stavka ","Procijenjeno","Stvarno"]
[null,"Mašne za crkvene klupe / ostalo povezano sa sjedenjem"]
[null,"Aranžmani za stolove (bez cvijeća)"]
[null,"Svjećice"]
[null,"Rasvjeta"]
[null,"Baloni"]
[null,"Ostalo:"]
[null,"Ukupno za ukrase",{"$f":"SUBTOTAL(109,Ukrasi[Procijenjeno])","v":0},{"$f":"SUBTOTAL(109,Ukrasi[Stvarno])","v":0}]
[]
[null,"DAROVI"]
[null,"Stavka ","Procijenjeno","Stvarno"]
[null,"Uzvanici"]
[null,"Mladenka i mladoženja"]
[null,"Roditelji"]
[null,"Osobe koje čitaju tekstove / ostali sudionici"]
[null,"Ostalo:"]
[null,"Ukupno za darove",{"$f":"SUBTOTAL(109,Darovi[Procijenjeno])","v":0},{"$f":"SUBTOTAL(109,Darovi[Stvarno])","v":0}]
[]
[null,"CVIJEĆE"]
[null,"Stavka ","Procijenjeno","Stvarno"]
[null,"Buketi"]
[null,"Ukrasi za rever"]
[null,"Ukrasi za zapešće"]
[null,"Obred"]
[null,"Ostalo:"]
[null,"Ukupno za cvijeće",{"$f":"SUBTOTAL(109,Cvijeće[Procijenjeno])","v":0},{"$f":"SUBTOTAL(109,Cvijeće[Stvarno])","v":0}]
[]
[null,"GLAZBA"]
[null,"Stavka ","Procijenjeno","Stvarno"]
[null,"Glazbenici za obred"]
[null,"Grupa/DJ za prijem"]
[null,"Ostalo:"]
[null,"Ukupno za glazbu",{"$f":"SUBTOTAL(109,Glazba[Procijenjeno])","v":0},{"$f":"SUBTOTAL(109,Glazba[Stvarno])","v":0}]
[]
[null,"FOTOGRAFIJA"]
[null,"Stavka ","Procijenjeno","Stvarno"]
[null,"Službene fotografije"]
[null,"Ostale fotografije"]
[null,"Dodatne fizičke fotografije"]
[null,"Fotoalbumi"]
[null,"Ostalo:"]
[null,"Ukupno za fotografije",{"$f":"SUBTOTAL(109,Fotografija[Procijenjeno])","v":0},{"$f":"SUBTOTAL(109,Fotografija[Stvarno])","v":0}]
[]
[null,"PRIJEM "]
[null,"Stavka ","Procijenjeno","Stvarno"]
[null,"Naknade za prostoriju/dvoranu"]
[null,"Stolovi i sjedala"]
[null,"Hrana"]
[null,"Stolnjaci"]
[null,"Ostalo:"]
[null,"Ukupno za prijem (bez glazbe i ukrasa)",{"$f":"SUBTOTAL(109,Prijem[Procijenjeno])","v":0},{"$f":"SUBTOTAL(109,Prijem[Stvarno])","v":0}]
[]
[null,"TISKANICE I ISPIS"]
[null,"Stavka ","Procijenjeno","Stvarno"]
[null,"Pozivnice"]
[null,"Objave"]
[null,"Zahvalnice"]
[null,"Osobne tiskanice"]
[null,"Ostalo:"]
[null,"Ukupno za tiskanice/ispis",{"$f":"SUBTOTAL(109,PapirnatiproizvodiITisak[Procijenjeno])","v":0},{"$f":"SUBTOTAL(109,PapirnatiproizvodiITisak[Stvarno])","v":0}]
[]
[null,"PRIJEVOZ"]
[null,"Stavka ","Procijenjeno","Stvarno"]
[null,"Limuzine"]
[null,"Parkiranje"]
[null,"Taxiji"]
[null,"Ostalo:"]
[null,"Ukupno za prijevoz",{"$f":"SUBTOTAL(109,Prijevoz[Procijenjeno])","v":0},{"$f":"SUBTOTAL(109,Prijevoz[Stvarno])","v":0}]
[]
[null,"OSTALI TROŠKOVI"]
[null,"Stavka ","Procijenjeno","Stvarno"]
[null,"Matičar"]
[null,"Naknada u vijećnici/crkvi"]
[null,"Koordinator vjenčanja"]
[null,"Probna večera"]
[null,"Ostalo:"]
[null,"Ukupno za ostale troškove",{"$f":"SUBTOTAL(109,OstaliTroškovi[Procijenjeno])","v":0},{"$f":"SUBTOTAL(109,OstaliTroškovi[Stvarno])","v":0}]